Cogmind - Beta 13 X2 @@@ ROGUE MODE // 2023.12.22 @ 16:41:45 Player: AI-57H Result: Destroyed by as-19449 with Assembled Heavy Rifle Performance ------------- Evolutions (0) 0 Regions Visited (4) 800 Robots Destroyed (10) 50 Value Destroyed (252) 252 Prototype IDs (23) 460 Alien Tech Used (0) 0 Bonus (383) 383 TOTAL SCORE: 1945 Bonus ------- Follower Combat Kills 95 Aligned with FarCom 300 Friendly Fire -12 Cogmind --------- Core Integrity 0/250 Matter 292/300 Energy 90/100 System Corruption 3% Temperature Cool (9) Movement Treading (160) Location -9/Mines Parts ------- > --- POWER (1) -------- (None) > --- PROPULSION (2) --- Light Treads Light Treads > --- UTILITY (2) ------ Large Storage Unit Signal Interpreter > --- WEAPON (2) ------- EM Pulse Gun > --- INVENTORY (15) --- Light Treads Light Treads Light Treads Light Treads Light Treads Improved Heat Sink Large Storage Unit Medium Battery (150) 0b10 Alert Chip ECM Suite Beamcaster Peak State ------------ > --- POWER ------------ Light Nuclear Core > --- PROPULSION ------- Light Treads Light Treads > --- UTILITY ---------- Large Storage Unit Signal Interpreter > --- WEAPON ----------- Medium Laser Beamcaster > --- INVENTORY -------- Ion Engine Ion Engine Light Treads Light Treads Light Treads Light Treads Light Treads Light Treads Light Treads Improved Heat Sink Large Storage Unit Medium Battery 0b10 Alert Chip ECM Suite EM Pulse Gun [Rating: 15] Favorites ----------- Power Ion Engine Engine Ion Engine Power Core Light Nuclear Core Propulsion Light Treads Treads Light Treads Utility Large Storage Unit Storage Large Storage Unit Processor Signal Interpreter Weapon Medium Laser Energy Gun Medium Laser Build | -11 -10 -10 -10 -9 ------- Run | Yrd Mat Min Exi Min Slots Evolved . | . . . . . Power . | . . . . . Propulsion . | . . . . . Utility . | . . . . . Weapon . | . . . . . Parts Attached 20 | 6 6 . . 8 Power 5 | 1 1 . . 3 Engine 4 | 1 1 . . 2 Core 1 | . . . . 1 Reactor . | . . . . . Propulsion 6 | 2 1 . . 3 Treads 6 | 2 1 . . 3 Leg . | . . . . . Wheel . | . . . . . Hover . | . . . . . Flight . | . . . . . Utility 4 | 1 3 . . . Device . | . . . . . Storage 2 | 1 1 . . . Processor 2 | . 2 . . . Hackware . | . . . . . Protection . | . . . . . Artifact . | . . . . . Weapon 5 | 2 1 . . 2 Energy Gun 5 | 2 1 . . 2 Energy Cannon . | . . . . . Ballistic Gun . | . . . . . Ballistic Cannon . | . . . . . Launcher . | . . . . . Special Weapon . | . . . . . Impact Weapon . | . . . . . Slashing Weapon . | . . . . . Piercing Weapon . | . . . . . Special Melee Weapon . | . . . . . Unidentified Prototypes . | . . . . . Parts Lost 6 | . . . . 6 Power 3 | . . . . 3 Propulsion 2 | . . . . 2 Utility . | . . . . . Weapon 1 | . . . . 1 Highest Loss Streak 4 | . . . . 4 To Critical Strikes . | . . . . . Average Slot Usage (%) 96 | . 87 100 100 98 Engine 12 | . 14 14 14 5 Core 1 | . . . . 8 Treads 28 | . 28 28 28 28 Storage 14 | . 14 14 14 14 Processor 12 | . 8 14 14 14 Energy Gun 26 | . 22 28 28 26 Naked Turns . | . . . . . Heaviest Build 32 | 12 29 29 29 32 Greatest Support 40 | 40 40 40 40 40 Greatest Overweight (x) 1 | 1 . . . . Average Overweight (x) . | . . . . . Largest Inventory Capacity 15 | 8 15 15 15 15 Average Capacity 13 | 7 11 15 15 15 Most Carried 15 | 6 13 13 14 15 Average Carried 11 | 3 9 12 13 14 Final Capacity 15 | 8 15 15 15 15 Final Carried 14 | 6 12 13 14 11 Class Distribution -------------------- 100% | Mutant Dominant Class ---------------- Mutant | -10/Materials Mutant | -10/Mines Mutant | -10/Exiles Mutant | -9/Mines Resources | -11 -10 -10 -10 -9 ----------- Run | Yrd Mat Min Exi Min Matter Collected 360 | 194 106 17 . 43 Remotely . | . . . . . Salvage Created 357 | . 164 99 . 94 Parts 14 | . 6 6 . 2 Haulers Intercepted . | . . . . . Recyclers Shooed . | . . . . . Parts Field Recycled . | . . . . . Retrieved Matter . | . . . . . Parts Self-Destructed . | . . . . . Prevented . | . . . . . Kills | -11 -10 -10 -10 -9 ------- Run | Yrd Mat Min Exi Min Combat Hostiles Destroyed 14 | . 3 4 . 7 Melee 1 | . . 1 . . Guns 13 | . 3 3 . 7 Classes Destroyed 4 | . 2 1 . 1 Watcher 1 | . 1 . . . Swarmer 4 | . . 2 . 2 Grunt 5 | . 3 2 . . Assembled 5 | . . . . 5 Best Kill Streak 3 | . 2 2 . 3 Combat Bots Only 3 | . 2 2 . 3 Max Kills in Single Turn 1 | . 1 1 . 1 Gunslinging . | . . . . . Exploded . | . . . . . Melee 1 | . . 1 . . Uniques/NPCs Destroyed . | . . . . . Combat | -11 -10 -10 -10 -9 -------- Run | Yrd Mat Min Exi Min Hostile Shots Fired 122 | . 23 13 . 86 Missed 23 | . 6 3 . 14 Damage Taken 1316 | . 221 133 . 962 Core 269 | . 28 10 . 231 Absorbed by Shields . | . . . . . Core Remaining (%) 100 | 100 . . . . Volleys Fired 58 | . 27 11 . 20 Largest 2 | . 2 2 . 2 Hottest 125 | . 90 100 . 125 Shots Fired 92 | . 39 22 . 31 Gun 92 | . 39 22 . 31 Cannon . | . . . . . Launcher . | . . . . . Special . | . . . . . Kinetic . | . . . . . Thermal 79 | . 27 22 . 30 Explosive . | . . . . . Electromagnetic 13 | . 12 . . 1 Robot Hit Streak 7 | . 5 3 . 7 Robot Miss Streak 4 | . 4 2 . 4 Penetration Max . | . . . . . Secondary Targets 3 | . 1 1 . 1 Max Gunslinging Chain 1 | . 1 1 . 1 Shots Hit Robots 48 | . 18 13 . 17 Core Hits 20 | . 7 4 . 9 Critical Kills . | . . . . . Critical Parts Destroyed . | . . . . . Critical Strikes 3 | . 1 1 . 1 Burn 3 | . 1 1 . 1 Melee Attacks . | . . . . . Impact . | . . . . . Slashing . | . . . . . Piercing . | . . . . . Sneak Attacks . | . . . . . Combat Hostiles . | . . . . . Follow-up Attacks . | . . . . . Damage Inflicted 696 | . 232 178 . 286 Guns 680 | . 232 174 . 274 Cannons . | . . . . . Explosions . | . . . . . Melee . | . . . . . Ramming 16 | . . 4 . 12 Kinetic . | . . . . . Thermal 637 | . 189 174 . 274 Explosive . | . . . . . Electromagnetic 43 | . 43 . . . Impact . | . . . . . Slashing . | . . . . . Piercing . | . . . . . Highest Corruption 3 | . . . . 3 Average Corruption 3 | . . . . 3 Corruption Purged . | . . . . . Corruption Blocked . | . . . . . Effects 1 | . . . . 1 Energy Discharges 1 | . . . . 1 Overload Shots . | . . . . . Overflow Damage . | . . . . . Projectiles . | . . . . . Explosions . | . . . . . Melee . | . . . . . Knockbacks . | . . . . . Impact . | . . . . . Kinetic . | . . . . . Secondary . | . . . . . Self-Inflicted Damage . | . . . . . Shots . | . . . . . Rammed 7 | . . 1 . 6 Targets Rammed 8 | . . 2 . 6 Kicked . | . . . . . Crushed 1 | . . 1 . . Highest Temperature 342 | . 290 342 . 327 Average Temperature 135 | . 132 121 . 147 Received Heat Transfer 442 | . 144 78 . 220 Effects 3 | . . 2 . 1 Energy Bleed 1 | . . 1 . . Interference 1 | . . . . 1 Damage (minor) 1 | . . 1 . . Siege Activations . | . . . . . Robots Corrupted . | . . . . . Combat Hostiles . | . . . . . Parts Fried . | . . . . . Impact Corruptions . | . . . . . Robots Melted . | . . . . . Combat Hostiles . | . . . . . Parts Melted 5 | . 3 . . 2 Heat Transferred 1924 | . 629 592 . 703 Parts Sabotaged . | . . . . . Parts Stolen . | . . . . . Parts Stripped . | . . . . . Power Chain Reactions . | . . . . . Missiles Intercepted . | . . . . . Alert | -11 -10 -10 -10 -9 ------- Run | Yrd Mat Min Exi Min Peak Influence 186 | . 117 186 . 137 Initial 4 | . . 4 . . Average 55 | . 55 65 . 45 Maximum Alert Level . | . . . . . Low Security (%) 100 | 100 100 100 . 100 Level 1 . | . . . . . Level 2 . | . . . . . Level 3 . | . . . . . Level 4 . | . . . . . Level 5 . | . . . . . High Security . | . . . . . Max Security . | . . . . . Squads Dispatched 3 | . 3 . . . Investigation . | . . . . . Extermination . | . . . . . Reinforcement 3 | . 3 . . . Assault . | . . . . . Garrison . | . . . . . Intercept . | . . . . . Searches Triggered . | . . . . . Construction Impeded . | . . . . . Haulers Reinforced . | . . . . . Active Scanning Responses . | . . . . . Cargo Convoy Interrupts . | . . . . . Stealth | -11 -10 -10 -10 -9 --------- Run | Yrd Mat Min Exi Min Distress Signals 1 | . 1 . . . Communications Jammed . | . . . . . Distress Signals . | . . . . . Times Spotted 34 | . 8 8 . 18 Peak Tracking Total 6 | . 2 3 . 6 Tactical Retreats 2 | . . 1 . 1 Traps | -11 -10 -10 -10 -9 ------- Run | Yrd Mat Min Exi Min Traps Triggered . | . . . . . Indirectly . | . . . . . Trap Hack Attempts . | . . . . . Triggered . | . . . . . Disarmed . | . . . . . Reprogrammed . | . . . . . Reused . | . . . . . Traps Extracted . | . . . . . Installed . | . . . . . Triggered . | . . . . . Machines | -11 -10 -10 -10 -9 ---------- Run | Yrd Mat Min Exi Min Machines Disabled . | . . . . . Max in Single Turn . | . . . . . Machines Repaired . | . . . . . Machines Dismantled . | . . . . . Machines Sabotaged . | . . . . . Overloaded Fab Kills . | . . . . . Hacking | -11 -10 -10 -10 -9 --------- Run | Yrd Mat Min Exi Min Machines Accessed 3 | . 1 . 2 . Terminals 1 | . 1 . . . Fabricators . | . . . . . Repair Stations . | . . . . . Recycling Units . | . . . . . Scanalyzers . | . . . . . Garrison Access . | . . . . . Total Hacks 26 | . 2 . 24 . Successful 26 | . 2 . 24 . Failed . | . . . . . Catastrophic . | . . . . . Database Lockouts . | . . . . . Manual 3 | . 2 . 1 . Terminals 2 | . 2 . . . Fabricators . | . . . . . Repair Stations . | . . . . . Recycling Units . | . . . . . Scanalyzers . | . . . . . Garrison Access . | . . . . . Terminal Hacks 25 | . 1 . 24 . Record 23 | . . . 23 . Terminal Index 1 | . 1 . . . Derelict Proto ID Bank 1 | . . . 1 . Fabricator Hacks . | . . . . . Repair Station Hacks . | . . . . . Recycling Unit Hacks . | . . . . . Scanalyzer . | . . . . . Garrison Access Hacks . | . . . . . Unauthorized Hacks 1 | . 1 . . . Terminals 1 | . 1 . . . Botnet 1 | . 1 . . . Fabricators . | . . . . . Repair Stations . | . . . . . Recycling Units . | . . . . . Scanalyzers . | . . . . . Garrison Access . | . . . . . Data Cores Recovered . | . . . . . Used . | . . . . . Hacking Detections 1 | . 1 . . . Full Trace Events . | . . . . . Feedback Events . | . . . . . Feedback Blocked . | . . . . . Robot Schematics Acquired . | . . . . . Robots Built . | . . . . . Authchips . | . . . . . Time . | . . . . . Total Robot Build Rating . | . . . . . Part Schematics Acquired . | . . . . . Parts Built . | . . . . . Authchips . | . . . . . Time . | . . . . . Total Part Build Rating . | . . . . . Parts Repaired . | . . . . . Time . | . . . . . Parts Recycled . | . . . . . Recycled Matter . | . . . . . Retrieved Matter . | . . . . . Retrieved Components . | . . . . . Parts Scanalyzed . | . . . . . Part Schematics Acquired . | . . . . . Parts Damaged . | . . . . . Bothacking | -11 -10 -10 -10 -9 ------------ Run | Yrd Mat Min Exi Min Used RIF Installer . | . . . . . Robots Hacked . | . . . . . Non-combat . | . . . . . Combat . | . . . . . Robot Hacks Applied . | . . . . . Relay Couplers Released . | . . . . . Fabnet Peak Effective % . | . . . . . Robots Rewired . | . . . . . Allies Hacked . | . . . . . Hacks Repelled . | . . . . . Allies | -11 -10 -10 -10 -9 -------- Run | Yrd Mat Min Exi Min Total Allies 6 | . . 6 . . Largest Group 6 | . . 6 6 3 Highest-Rated Group 109 | . . 109 109 40 Highest-Rated Ally 31 | . . 31 31 16 Total Orders . | . . . . . Ally Attacks 35 | . . 8 . 27 Total Damage 363 | . . 98 . 265 Kills 8 | . . 3 . 5 Allies Corrupted . | . . . . . Allies Melted . | . . . . . Intel | -11 -10 -10 -10 -9 ------- Run | Yrd Mat Min Exi Min Robot Analysis Total . | . . . . . Derelict Logs Recovered 2 | . . 2 . . Drone Launches . | . . . . . Drone Recoveries . | . . . . . Exploration | -11 -10 -10 -10 -9 ------------- Run | Yrd Mat Min Exi Min Turns Passed 2208 | 89 473 804 456 386 Spaces Moved 1227 | 50 237 466 285 189 Core 5 | 5 . . . . Treads 1222 | 45 237 466 285 189 Legs . | . . . . . Wheels . | . . . . . Hover . | . . . . . Flight . | . . . . . Fastest Speed 50 | 50 160 160 160 160 Average Speed 159 | 151 160 160 160 160 Slowest Speed 160 | 160 160 160 160 160 Overloaded Moves . | . . . . . Propulsion Burnouts . | . . . . . Robots Hopped . | . . . . . Cave-ins Triggered . | . . . . . Exploration Rate (%) 47 | 4 26 96 71 42 Regions Visited 4 Branch Regions 3 Pre-discovered Areas 2 | . . 1 1 . Known Exits Taken 3 | . 1 1 1 . Unknown Exits Taken 1 | 1 . . . . Scrap Searched 2 | . . 1 . 1 Spaces Dug . | . . . . . Terrain Destroyed . | . . . . . Melee . | . . . . . Projectile . | . . . . . AOE . | . . . . . Terrain Rammed . | . . . . . Walls Destroyed . | . . . . . Machines Disabled . | . . . . . Actions | -11 -10 -10 -10 -9 --------- Run | Yrd Mat Min Exi Min Total 1378 | 61 294 501 285 237 Wait 37 | . 3 22 . 12 Move 1223 | 49 236 465 284 189 Hop . | . . . . . Pick Up 21 | 6 13 1 1 . Fast Attach 9 | 6 2 . . 1 Attach 4 | . . . . 4 Detach . | . . . . . Swap 7 | . 4 . . 3 Drop 10 | . 9 . . 1 Fire 58 | . 27 11 . 20 Melee . | . . . . . Ram . | . . . . . Kick . | . . . . . Crush 8 | . . 2 . 6 Escape Stasis . | . . . . . Rewire 1 | . . . . 1 Trap . | . . . . . Miscellaneous . | . . . . . Route ------- -11/Scrapyard -10/Materials -10/Mines (discovered 3 exits: *Mat x2 / *Exi) -10/Exiles (discovered 2 exits: *Min x2) -9/Mines History --------- Turn | Location | Event 37 | -11/Scrapyard | Discovered new exit (range 15) 90 | -11/Scrapyard | Entered Materials 351 | -10/Materials | Build established: Mutant 553 | -10/Materials | Discovered new exit (range 5) 562 | -10/Materials | Identified exit to Mines 563 | -10/Materials | Entered Mines 571 | -10/Mines | Discovered new exit (range 10) 583 | -10/Mines | Identified exit to Materials 806 | -10/Mines | Assisted by bots powering up and referring to "LRC-V3" 958 | -10/Mines | Learned Materials garrison access intel 972 | -10/Mines | Discovered exit to Materials (range 11) 1282 | -10/Mines | Escorted by a lone wolf Derelict 1302 | -10/Mines | Learned location of Storage (-7) 1339 | -10/Mines | Deemed a non-threat by the Exiles lab entrance 1339 | -10/Mines | Discovered new exit (range 5) 1344 | -10/Mines | Identified exit to Exiles 1367 | -10/Mines | Entered Exiles 1367 | -10/Exiles | Accompanied by 6 allies 1368 | -10/Exiles | Identified exit to Mines 1397 | -10/Exiles | Led the pair of lost Derelicts to a safe place 1417 | -10/Exiles | Met 8R-AWN 1443 | -10/Exiles | Met EX-HEX 1523 | -10/Exiles | Met EX-DEC 1564 | -10/Exiles | Learned location of Zion (-6) 1603 | -10/Exiles | Met EX-BIN 1625 | -10/Exiles | Aligned with FarCom system 1627 | -10/Exiles | Given EX-Vault access code 1663 | -10/Exiles | Opened EX-Vault 1673 | -10/Exiles | Found 0b10 Alert Chip 1708 | -10/Exiles | Warned to stay clear of 0b10 Research branches 1823 | -10/Exiles | Left Exiles lab with 0b10 Alert Chip 1823 | -10/Exiles | Entered Mines 1823 | -9/Mines | Accompanied by 3 allies 1832 | -9/Mines | Met a Derelict bent on vengeance 2106 | -9/Mines | Assembled infested the area 2181 | -9/Mines | Core integrity fell below 50% 2195 | -9/Mines | Lost 4 parts (2p1n1w) 2200 | -9/Mines | Core integrity fell below 20% 2209 | -9/Mines | Destroyed by as-19449 with Assembled Heavy Rifle Last Messages --------------- 02142_ Lgt. Nuclear Core destroyed. 02142_ System corrupted by crushing effect (+3). 02145_ Ion Engine destroyed. 02147_ as-95973 destroyed. 02157_ Slammed into as-05179. 02162_ Lgt. Treads destroyed. 02164_ Med. Laser destroyed. 02173_ as-05179 suffers critical hit (Burn). 02173_ as-05179 destroyed. 02178_ as-51447 destroyed. 02180_ as-86277 destroyed. 02181_ Acquired 11 matter. 02196_ Overheating: System interference. 02196_ Beamcaster temporarily disabled. 02200_ System corrupted: Energy discharge (-50). 02201_ Ion Engine destroyed. 02201_ Acquired 12 matter. 02203_ Slammed into as-19449. 02207_ Lgt. Treads destroyed. 02208_ Slammed into as-19449. Map ----- +----------------------------------------------------+ | | | | | ?????????????????????????????????????????????????? | | ????????????????????????????????????###??????????? | | ??????????????????????????????????## ##?????????? | | ?????????????????????????????????## #?????????? | | ?????????????????????????????????# #?????????? | | ?????????????????????????????????# #??????????? | | ????????????????????????????????## #??#####???# | | ????????????????????????????????# #### ##?# | | ????????????????????????????????# ## ## | | ????????????????????????????????# ## | | ???????????????????????????????## ### | | ??????????????????????????????## ## | | ?????????????????????????????## # | | ?????????????????????????????# ####### | | ?????????????????????????????# ##?????? | | ????????????????????????????## #??????? | | ???????????????#######?????## ##?????? | | ???????????????# ??#### ##????? | | ???????????????# ""???# ##???? | | ???????????????? ""???#a### #### ##### | | ????????????????? ""???#%#?# ####??## | | ?????????????????? ???#%#?# #??????## | | ??????????????????# #####[### #???????## | | ??????????????????# #%=%a@% #????????## ### | | ?????????????????##!*%[%%* #?????????# ###?## | | ?????????????????# !=%!##=#####?????????# #????### | | ?????????????????# **%=## #?????????????# #??????? | | ??????????????# ## %%[=## #?????????????# #??????? | | ??????????????#=%% ! ! % #?????????????# #??????? | | ??????????????#%### #####?????????????# ######## | | ??????????????#???#####?????????????????# # | | ???????????dd???????????????????????????####### # | | ??????????????????????????????????????????????# # | | ???????????????????????????????????###????????# # | | ???????????????????????????????????# ????????# # | | ??????????????????????????????????## ????????# # | | ??????????????????????????????????# ??????### # | | ?????????????????????????????????## ?????## | | ???????????????????????????????### ?????# | | ???????????????????????????????# ##???# | | ?????????????????????????????????? ###?## | | ????????????????????????????????????# #### | | ?????????????????????????????????????# ## % | | ?????????????????????????????????????# | | ????????????????????????????????????## ## | | ???????????????????????????????????## ##? | | ????????????????????????????????#### ##?? | | ???????????????????????????????## % #??? | +----------------------------------------------------+ Best States ------------- Heat Dissipation 25 Energy Generation 14 Energy Capacity 250 Matter Stores 300 Matter Capacity 300 Sight Range 18 Terrain Scan Density 10 Evasion (%) 40 Recoil Reduction 2 Item Schematics ----------------- None Robot Schematics ------------------ None Fabricated ------------ Nothing Alien Tech Used ----------------- None Achievements -------------- None Challenges ------------ None Game ------ Seed HypervelocityIntegratedMaul Manual? 0 Play Time 00:14:57 Cumulative 295.5 hours Start 2023.12.22 @ 12:24:48 End 2023.12.22 @ 16:41:45 Sessions 5 Manual Loads 0 Difficulty Rogue Special Mode None Game No. 68 Rogue 52 Adventurer 10 Explorer 6 Win Type - Total 24 Types 9/0/4/3/0/6/2/0/0 Lore% 65 Gallery% 75 Achievement% 72 Wizard Run 0 Options --------- ASCII 0 Keyboard 0 Movement Mouse Keybinds 0 Fullscreen 1 Font 24/Smallcaps Map View 76x50 Zoom Use 0% Tactical HUD 1 Map Filters NONE Filters NONE Steam 1 RUN: b52942e5-2f20-463b-a93c-48e91d29ef01